Cogmind - Beta 16.1 @@@ ROGUE MODE // 2026.04.03 @ 22:49:21 Player: RHAHI Result: Destroyed by KJ-JS4(p) with EM Pulse Gun Performance ------------- Evolutions (0) 0 Regions Visited (3) 600 Robots Destroyed (33) 165 Value Destroyed (611) 611 Prototype IDs (8) 160 Alien Tech Used (0) 0 Bonus (800) 800 TOTAL SCORE: 2336 Bonus ------- Registered with UFD 300 Met Optimus in HQ 500 Cogmind --------- Core Integrity 0/250 Matter 260/300 Energy 300/300 System Corruption 1% Temperature Cool (0) Movement Rolling (145) Ox3 Location -7/Scraptown Parts ------- > --- POWER (1) -------- Angular Momentum Engine > --- PROPULSION (2) --- Armored Huge Wheel > --- UTILITY (2) ------ Huge Storage Unit Makeshift Light Armor Plating > --- WEAPON (2) ------- LU-1G1's Laser Shovel Companion Sword > --- INVENTORY (25) --- Light Nuclear Core Overtuned Huge Scrapsphere Scrap Suit Large Storage Unit High-capacity Matter Pod (200) Deep Structural Scanner Improved Sensor Array Terrain Scanner Advanced Terrain Scan Processor Seismic Detector Improved Melee Analysis Suite Advanced Melee Analysis Suite Makeshift Light Armor Plating Improved Shield Generator Makeshift System Shield Field Recycling Unit (100) Plasma Cannon Grenade Launcher Mini Grenade Launcher Multitool Enhanced Flamer Junk Cannon (10) Peak State ------------ > --- POWER ------------ Angular Momentum Engine > --- PROPULSION ------- Armored Huge Wheel > --- UTILITY ---------- Huge Storage Unit Makeshift Light Armor Plating > --- WEAPON ----------- LU-1G1's Laser Shovel Companion Sword > --- INVENTORY -------- Light Nuclear Core Overtuned Huge Scrapsphere Scrap Suit Large Storage Unit High-capacity Matter Pod Deep Structural Scanner Improved Sensor Array Terrain Scanner Advanced Terrain Scan Processor Seismic Detector Improved Melee Analysis Suite Advanced Melee Analysis Suite Makeshift Light Armor Plating Improved Shield Generator Makeshift System Shield Field Recycling Unit Plasma Cannon Grenade Launcher Mini Grenade Launcher Multitool Enhanced Flamer Junk Cannon [Rating: 38] Favorites ----------- Power Angular Momentum Engine Engine Angular Momentum Engine Propulsion Armored Huge Wheel Wheel Armored Huge Wheel Utility Huge Storage Unit Device Seismic Detector Storage Huge Storage Unit Processor Core Analyzer Protection Makeshift Light Armor Plating Weapon Companion Sword Energy Gun Spread Laser Energy Cannon Plasma Cannon Ballistic Gun Assault Rifle Ballistic Cannon Battle Cannon Launcher Mini Grenade Launcher Special Weapon Mining Laser Slashing Weapon Companion Sword Build | -11 -10 -10 -7 ------- Run | Yrd Mat Sub Scr Slots Evolved . | . . . . Power . | . . . . Propulsion . | . . . . Utility . | . . . . Weapon . | . . . . Parts Attached 48 | 8 13 13 14 Power 7 | 1 3 2 1 Engine 7 | 1 3 2 1 Core . | . . . . Reactor . | . . . . Propulsion 8 | 2 2 3 1 Treads . | . . . . Leg . | . . . . Wheel 8 | 2 2 3 1 Hover . | . . . . Flight . | . . . . Utility 18 | 3 5 4 6 Device 8 | 2 1 1 4 Storage 4 | 1 2 1 . Processor 2 | . . . 2 Hackware . | . . . . Protection 4 | . 2 2 . Artifact . | . . . . Weapon 15 | 2 3 4 6 Energy Gun 1 | . 1 . . Energy Cannon 2 | . . 1 1 Ballistic Gun 4 | 2 1 1 . Ballistic Cannon 1 | . . 1 . Launcher 1 | . . . 1 Special Weapon 4 | . 1 . 3 Impact Weapon . | . . . . Slashing Weapon 2 | . . 1 1 Piercing Weapon . | . . . . Special Melee Weapon . | . . . . Unidentified Prototypes 4 | . 1 . 3 Parts Lost 5 | . 3 2 . Power . | . . . . Propulsion 3 | . 1 2 . Utility 1 | . 1 . . Weapon 1 | . 1 . . Highest Loss Streak 2 | . 2 1 . To Critical Strikes . | . . . . Average Backups 12 | 3 14 9 13 Power 1 | 1 2 1 . Propulsion 1 | . . 1 . Utility 7 | 1 8 3 8 Weapon 2 | 1 3 2 2 Tool/Special . | . . . . Unused Backups 52 | . 6 5 41 Power 7 | . 2 1 4 Propulsion 4 | . . . 4 Utility 23 | . 2 2 19 Weapon 15 | . 2 2 11 Tool/Special 3 | . . . 3 Average Slot Usage (%) 77 | . 98 99 63 Engine 12 | . 14 14 10 Wheel 19 | . 27 27 14 Device 9 | . 10 15 6 Storage 9 | . 14 7 8 Processor 1 | . . . 2 Protection 2 | . 2 5 1 Energy Cannon 2 | . . 2 2 Ballistic Gun 5 | . 21 11 . Ballistic Cannon 2 | . . 10 . Special Weapon 1 | . 5 . 1 Slashing Weapon 7 | . . . 12 Peak Build Rating 38 | 9 11 18 38 Average Rating 19 | 5 8 12 25 On Entrance 8 | . 7 10 17 Avg Prop Armor Cover (%) 11 | . . 3 17 Naked Turns 35 | . . . 35 Heaviest Build 112 | 13 92 94 112 Greatest Support 28 | 20 26 26 28 Greatest Overweight (x) 27 | . 9 5 27 Average Overweight (x) 1 | . 1 1 1 Largest Inventory Capacity 25 | 8 25 25 25 Average Capacity 16 | 7 17 14 17 Most Carried 25 | 7 16 25 25 Average Carried 13 | 3 14 10 15 Final Capacity 25 | 8 15 25 25 Final Carried 25 | 7 15 25 25 Scrap Suit Usage (%) 2 | . . . 3 Parts Cannibalized 2 | . . . 2 Class Distribution -------------------- 79% | Mutant 12% | Scavenger-Mutant 7% | Scrapper Dominant Class ---------------- Mutant | -10/Materials Scavenger-Mutant | -10/Subcaves Mutant | -7/Scraptown Resources | -11 -10 -10 -7 ----------- Run | Yrd Mat Sub Scr Matter Collected 1714 | 346 441 514 413 Remotely . | . . . . Salvage Created 1091 | 150 414 527 . Parts 78 | 13 41 24 . Haulers Intercepted 2 | . 2 . . Recyclers Shooed . | . . . . Parts Field Recycled 33 | . . . 33 Retrieved Matter 363 | . . . 363 Parts Self-Destructed 14 | . . 14 . Prevented . | . . . . Parts Restored . | . . . . Kills | -11 -10 -10 -7 ------- Run | Yrd Mat Sub Scr Combat Hostiles Destroyed 22 | . 11 11 . Guns 17 | . 11 6 . Cannons 3 | . . 3 . Classes Destroyed 8 | 2 5 1 . Worker 3 | . 3 . . Tunneler 3 | 3 . . . Hauler 2 | . 2 . . Recycler 1 | 1 . . . Watcher 2 | . 2 . . Swarmer 11 | . 8 3 . Grunt 3 | . 3 . . Subdweller 8 | . . 8 . Best Kill Streak 4 | 2 4 3 . Combat Bots Only 3 | . 3 3 . Max Kills in Single Turn 1 | 1 1 1 . Gunslinging . | . . . . Exploded . | . . . . Melee . | . . . . Uniques/NPCs Destroyed . | . . . . Combat | -11 -10 -10 -7 -------- Run | Yrd Mat Sub Scr Hostile Shots Fired 130 | . 79 41 10 Missed 30 | . 17 11 2 Hits 100 | . 62 30 8 Projectile 100 | . 62 30 8 Critical Strikes 2 | . . 2 . Actively Blocked 1 | . . 1 . Damage Taken 1228 | . 582 526 120 Core 260 | . 128 91 41 Absorbed by Shields . | . . . . Redirected to Shielding 9 | . . 9 . Regen/Repaired (Parts) 210 | . . . 210 Core Remaining (%) 100 | 100 . . . Volleys Fired 117 | 11 57 49 . Largest 2 | 2 2 2 . Hottest 100 | 40 100 100 . Shots Fired 211 | 22 104 85 . Gun 145 | 22 93 30 . Cannon 51 | . . 51 . Launcher . | . . . . Special 15 | . 11 4 . Kinetic 161 | 22 93 46 . Thermal 25 | . 11 14 . Explosive . | . . . . Electromagnetic 25 | . . 25 . Robot Hit Streak 21 | 3 6 21 . Robot Miss Streak 4 | 4 4 4 . Penetration Max . | . . . . Secondary Targets 4 | . 4 . . Max Gunslinging Chain 1 | . 1 . . Shots Hit Robots 125 | 11 51 63 . Core Hits 53 | 4 23 26 . Critical Kills . | . . . . Critical Parts Destroyed . | . . . . Critical Strikes 2 | . . 2 . Blast 2 | . . 2 . Melee Attacks 2 | . . . 2 Impact . | . . . . Slashing 2 | . . . 2 Piercing . | . . . . Sneak Attacks . | . . . . Combat Hostiles . | . . . . Follow-up Attacks . | . . . . Damage Inflicted 1905 | 136 718 1051 . Guns 1206 | 136 712 358 . Cannons 693 | . . 693 . Explosions . | . . . . Melee . | . . . . Ramming 6 | . 6 . . Kinetic 1348 | 136 712 500 . Thermal 107 | . . 107 . Explosive . | . . . . Electromagnetic 444 | . . 444 . Impact . | . . . . Slashing . | . . . . Piercing . | . . . . Highest Corruption 2 | . 2 2 2 Average Corruption 1 | . 1 2 2 Corruption Purged . | . . . . Corruption Blocked . | . . . . Effects 64 | . 14 36 14 Message Errors 16 | . 5 7 4 Matter Fused 20 | . 6 7 7 Heat Flow Errors 7 | . 1 6 . Energy Discharges 7 | . . 6 1 Data Loss (minor) 4 | . 1 2 1 Data Loss (major) 3 | . . 3 . Misfires 4 | . 1 3 . Alerts 2 | . . 1 1 Weapon Failures 1 | . . 1 . Overload Shots . | . . . . Overflow Damage . | . . . . Projectiles . | . . . . Explosions . | . . . . Melee . | . . . . Knockbacks 3 | . . 3 . Impact . | . . . . Kinetic 3 | . . 3 . Secondary . | . . . . Self-Inflicted Damage 3 | . 3 . . Shots . | . . . . Rammed 1 | . 1 . . Targets Rammed 1 | . 1 . . Kicked . | . . . . Crushed . | . . . . Highest Temperature 206 | . 206 197 . Average Temperature 36 | . 24 85 . Received Heat Transfer 270 | . 174 48 48 Siege Activations . | . . . . Martial Activations . | . . . . Shielding Activations . | . . . . Robots Disrupted . | . . . . Combat Hostiles . | . . . . Robots Corrupted 2 | . . 2 . Combat Hostiles 2 | . . 2 . Parts Fried 2 | . . 2 . Impact Corruptions . | . . . . Robots Melted . | . . . . Combat Hostiles . | . . . . Parts Melted . | . . . . Heat Transferred 135 | . . 135 . Parts Sabotaged . | . . . . Parts Stolen . | . . . . Parts Stripped . | . . . . Power Chain Reactions . | . . . . Alert | -11 -10 -10 -7 ------- Run | Yrd Mat Sub Scr Maximum Alert Level . | . . . . Low Security (%) 100 | 100 100 . . Level 1 . | . . . . Level 2 . | . . . . Level 3 . | . . . . Level 4 . | . . . . Level 5 . | . . . . High Security . | . . . . Max Security . | . . . . Peak Influence 131 | 10 131 . . Initial 3 | . 3 . . Average 32 | 1 35 . . Influence Increases 464 | 20 374 70 . Destroy 0b10 Robot/C 280 | . 220 60 . Destroy 0b10 Robot/NC 55 | 20 35 . . Destroy Leader 58 | . 48 10 . Successful Hack 30 | . 30 . . Select Force Hacks 30 | . 30 . . Destroy Structure 11 | . 11 . . Influence Decreases 464 | 15 379 70 . Entered New Map 2 | . 2 . . Time Decay 438 | 15 353 70 . Lost Part 24 | . 24 . . Squads Dispatched 2 | . 2 . . Investigation 2 | . 2 . . Extermination . | . . . . Reinforcement . | . . . . Assault . | . . . . Garrison . | . . . . Intercept . | . . . . Searches Triggered . | . . . . Construction Impeded . | . . . . Haulers Reinforced . | . . . . Active Scanning Responses . | . . . . Cargo Convoy Interrupts . | . . . . Stealth | -11 -10 -10 -7 --------- Run | Yrd Mat Sub Scr Distress Signals 1 | . 1 . . Communications Jammed . | . . . . Distress Signals . | . . . . Times Spotted 35 | . 18 12 5 Peak Tracking Total 6 | . 6 3 5 Tactical Retreats 1 | . . 1 . Traps | -11 -10 -10 -7 ------- Run | Yrd Mat Sub Scr Traps Triggered 2 | . 2 . . Indirectly . | . . . . Trap Hack Attempts . | . . . . Triggered . | . . . . Disarmed . | . . . . Reprogrammed . | . . . . Reused . | . . . . Traps Extracted . | . . . . Installed . | . . . . Triggered . | . . . . Machines | -11 -10 -10 -7 ---------- Run | Yrd Mat Sub Scr Machines Disabled 1 | . . . 1 Max in Single Turn 1 | . . . 1 Machines Repaired . | . . . . Machines Dismantled . | . . . . Machines Sabotaged . | . . . . Overloaded Fab Kills . | . . . . Hacking | -11 -10 -10 -7 --------- Run | Yrd Mat Sub Scr Machines Accessed 17 | . 8 1 8 Terminals 7 | . 7 . . Fabricators . | . . . . Repair Stations . | . . . . Recycling Units 1 | . 1 . . Scanalyzers . | . . . . Garrison Access . | . . . . Total Hacks 69 | . 25 4 40 Successful 56 | . 12 4 40 Failed 12 | . 12 . . Catastrophic 1 | . 1 . . Database Lockouts 1 | . 1 . . Manual 23 | . 23 . . Terminals 23 | . 23 . . Fabricators . | . . . . Repair Stations . | . . . . Recycling Units 2 | . 2 . . Scanalyzers . | . . . . Garrison Access . | . . . . Terminal Hacks 47 | . 3 4 40 Record 43 | . . 4 39 Robot Schematic 1 | . 1 . . Robot Analysis 1 | . 1 . . Prototype ID Bank 1 | . 1 . . Open Door 1 | . . . 1 Fabricator Hacks . | . . . . Repair Station Hacks . | . . . . Recycling Unit Hacks . | . . . . Scanalyzer . | . . . . Garrison Access Hacks . | . . . . Unauthorized Hacks 9 | . 9 . . Terminals 8 | . 8 . . Botnet 2 | . 2 . . Operators 1 | . 1 . . Skim 5 | . 5 . . Fabricators . | . . . . Repair Stations . | . . . . Recycling Units 1 | . 1 . . Tunnel 1 | . 1 . . Scanalyzers . | . . . . Garrison Access . | . . . . Data Cores Recovered . | . . . . Used . | . . . . Hacking Detections 6 | . 6 . . Full Trace Events . | . . . . Feedback Events . | . . . . Feedback Blocked . | . . . . Robot Schematics Acquired 1 | . 1 . . Robots Built . | . . . . Authchips . | . . . . Time . | . . . . Total Robot Build Rating . | . . . . Part Schematics Acquired . | . . . . Parts Built . | . . . . Authchips . | . . . . Time . | . . . . Total Part Build Rating . | . . . . Part Studies Acquired . | . . . . Parts Repaired . | . . . . Time . | . . . . Parts Recycled . | . . . . Recycled Matter . | . . . . Retrieved Matter . | . . . . Retrieved Components . | . . . . Parts Scanalyzed . | . . . . Part Schematics Acquired . | . . . . Parts Damaged . | . . . . Bothacking | -11 -10 -10 -7 ------------ Run | Yrd Mat Sub Scr Used RIF Installer . | . . . . Robots Hacked . | . . . . Non-combat . | . . . . Combat . | . . . . Robot Hacks Applied . | . . . . Relay Couplers Released . | . . . . Fabnet Peak Effective % . | . . . . Robots Rewired . | . . . . Allies Hacked . | . . . . Hacks Repelled . | . . . . Allies | -11 -10 -10 -7 -------- Run | Yrd Mat Sub Scr Total Allies . | . . . . Largest Group . | . . . . Highest-Rated Group . | . . . . Highest-Rated Ally . | . . . . Total Orders . | . . . . Ally Attacks . | . . . . Total Damage . | . . . . Kills . | . . . . Allies Corrupted . | . . . . Allies Melted 1 | . . . 1 Intel | -11 -10 -10 -7 ------- Run | Yrd Mat Sub Scr Active Infowar (turns) 5189 | 29 1131 2603 1426 Optics 282 | . . . 282 Terrain 4 | 4 . . . Structural 1553 | . . 577 976 Seismic 3833 | 25 1131 2509 168 Robot Analysis Total 1 | . 1 . . Derelict Logs Recovered 7 | . . 2 5 Drone Launches . | . . . . Drone Recoveries . | . . . . Exploration | -11 -10 -10 -7 ------------- Run | Yrd Mat Sub Scr Turns Passed 11093 | 112 1447 2746 6788 Spaces Moved 8465 | 77 917 1994 5477 Core 1456 | 3 . . 1453 Treads . | . . . . Legs . | . . . . Wheels 7009 | 74 917 1994 4024 Hover . | . . . . Flight . | . . . . Fastest Speed 50 | 50 80 90 50 Average Speed 115 | 78 109 123 114 Slowest Speed 1400 | 80 215 175 1400 Overloaded Moves . | . . . . Propulsion Burnouts . | . . . . Robots Hopped . | . . . . Potential Cave-ins . | . . . . Cave-ins Triggered . | . . . . Exploration Rate (%) 63 | 4 92 62 96 Regions Visited 3 Branch Regions 2 Pre-discovered Areas 5 | . 3 . 2 Known Exits Taken . | . . . . Unknown Exits Taken 3 | 1 1 1 . Scrap Searched 6 | . . . 6 Spaces Dug 26 | . 9 1 16 Terrain Destroyed 28 | . 11 2 15 Melee . | . . . . Projectile 13 | . 11 2 . AOE . | . . . . Terrain Rammed . | . . . . Walls Destroyed . | . . . . Machines Disabled . | . . . . Actions | -11 -10 -10 -7 --------- Run | Yrd Mat Sub Scr Total 9553 | 102 1234 2202 6015 Wait 580 | . 208 59 313 Move 8462 | 76 916 1993 5477 Hop . | . . . . Pick Up 190 | 7 18 42 123 Fast Attach 26 | 7 4 1 14 Attach 16 | . 3 3 10 Detach 13 | . 2 . 11 Swap 41 | 1 11 23 6 Drop 105 | . 14 32 59 Fire 117 | 11 57 49 . Melee 2 | . . . 2 Ram 1 | . 1 . . Kick . | . . . . Crush . | . . . . Escape Stasis . | . . . . Rewire . | . . . . Trap . | . . . . Miscellaneous . | . . . . Route ------- -11/Scrapyard -10/Materials (discovered 4 exits: [*Mat x2] / [*Min] / *Sub) -10/Subcaves (discovered 4 exits: *Mat x2 / Rec / *Scr) -7/Scraptown (discovered 2 exits: [*Fac x2]) History --------- Turn | Location | Event 33 | -11/Scrapyard | Discovered new exit (range 15) 113 | -11/Scrapyard | Entered Materials 215 | -10/Materials | Discovered new exit (range 7) 313 | -10/Materials | Build established: Mutant 366 | -10/Materials | Discovered new exit (range 14) 407 | -10/Materials | Discovered new exit (range 8) 703 | -10/Materials | Central database locked down 803 | -10/Materials | Discovered new exit (range 16) 1082 | -10/Materials | Core integrity fell below 50% 1114 | -10/Materials | Learned Storage stockpile data 1233 | -10/Materials | Learned location of 2 exits from Subcaves 1278 | -10/Materials | Learned Storage garrison access intel 1313 | -10/Materials | Loaded intel: 8 terminal locations 1338 | -10/Materials | Learned location of Mines (-10) 1371 | -10/Materials | Learned Storage security intel 1413 | -10/Materials | Learned Storage stockpile data 1560 | -10/Materials | Entered Subcaves 1561 | -10/Subcaves | Approached by a straggling Scientist 1561 | -10/Subcaves | Identified exit to Materials 1626 | -10/Subcaves | A swath of the cavern ceiling suddenly collapsed 1869 | -10/Subcaves | Shifting Twisted Machinery released Sub. Shrapnel Launcher 1870 | -10/Subcaves | Shifting Twisted Machinery released Flamer 2373 | -10/Subcaves | Identified exit to Recycling 2406 | -10/Subcaves | Ambushed by Subdwellers from Twisted Machinery 2513 | -10/Subcaves | Learned 2 Materials zone layouts 2529 | -10/Subcaves | Visited Clippyterm 2532 | -10/Subcaves | Learned Factory trap positions 2532 | -10/Subcaves | Learned Research machine intel 2683 | -10/Subcaves | Shifting Twisted Machinery released Mak. System Shield 2701 | -10/Subcaves | Core integrity fell below 20% 2840 | -10/Subcaves | Shifting Twisted Machinery released Riot Gun 3260 | -10/Subcaves | Build established: Scavenger-Mutant 3845 | -10/Subcaves | Shifting Twisted Machinery released Barrage Gun 4306 | -10/Subcaves | Entered Scraptown 4377 | -7/Scraptown | Visited Assassins FH 4441 | -7/Scraptown | Scanned Subdweller tech in exchange for log data 4457 | -7/Scraptown | Learned location of Armory (-3) 4458 | -7/Scraptown | Learned 8 Factory zone layouts 4460 | -7/Scraptown | Learned 8 Research zone layouts 4461 | -7/Scraptown | Learned location of Extension (-5) 4463 | -7/Scraptown | Learned Factory stockpile data 4482 | -7/Scraptown | Discovered new exit (range 11) 4594 | -7/Scraptown | Build established: Mutant 4738 | -7/Scraptown | Visited Bundlers 4747 | -7/Scraptown | Visited UFD Registry 4749 | -7/Scraptown | Registered with UFD as "Bulletplate" 4783 | -7/Scraptown | Visited Modified Component R&D 4801 | -7/Scraptown | Visited Curators Association 4832 | -7/Scraptown | Visited Cartography Club 4844 | -7/Scraptown | Visited Sword Containment 4994 | -7/Scraptown | Visited Junk Cannon Lab 5062 | -7/Scraptown | Visited Abandonware Association 5095 | -7/Scraptown | Visited CR-KLE's Repair Center 5105 | -7/Scraptown | Visited Symbiants 5110 | -7/Scraptown | Visited Spacefarers 5198 | -7/Scraptown | System corruption cleaned by C-Scrubber 5709 | -7/Scraptown | Guru changed UFD alias to "Chainblaster" 6422 | -7/Scraptown | Visited TADAMA 6815 | -7/Scraptown | Learned abandonware demo "OVRCLOCK.EXE" 6842 | -7/Scraptown | Learned abandonware demo "HACKBUD.EXE" 6842 | -7/Scraptown | Learned abandonware demo "KABOOM.EXE" 6892 | -7/Scraptown | Found Prototype Slashing Weapon 6892 | -7/Scraptown | Identified Companion Sword 6925 | -7/Scraptown | Visited Scrap Suit Storage 7037 | -7/Scraptown | Released all parts (4) 7060 | -7/Scraptown | Found Deep Structural Scanner 7165 | -7/Scraptown | Found Scrap Suit 7188 | -7/Scraptown | Visited LU-1G1's Boring Crew 7274 | -7/Scraptown | Delivered Scrap Shield to a Scientist 7444 | -7/Scraptown | Visited Science Testing Area 7467 | -7/Scraptown | Visited Research Penetration Think Tank 7510 | -7/Scraptown | Found Prototype Special Weapon 8125 | -7/Scraptown | Found Scrap Suit 8385 | -7/Scraptown | CR-KLE repaired 3 parts 8644 | -7/Scraptown | Visited CPS Storage 8709 | -7/Scraptown | Build established: Scrapper 8875 | -7/Scraptown | Identified Junk Cannon 9531 | -7/Scraptown | Build established: Mutant 10603 | -7/Scraptown | Met Optimus 10603 | -7/Scraptown | Accepted into 0bPrime 11003 | -7/Scraptown | Civil war broke out across Scraptown 11011 | -7/Scraptown | Found Prototype Special Weapon 11022 | -7/Scraptown | Identified LU-1G1's Laser Shovel 11067 | -7/Scraptown | Lost 5 allies 11079 | -7/Scraptown | Discovered new exit (range 6) 11094 | -7/Scraptown | Destroyed by KJ-JS4(p) with EM Pulse Gun Last Messages --------------- 11023_ LU-1G1's Laser Shovel disintegrates Earth. 11025_ LU-1G1's Laser Shovel disintegrates Wall. 11026_ LU-1G1's Laser Shovel disintegrates Earth. 11028_ LU-1G1's Laser Shovel disintegrates Wall. 11029_ 7F-JFF(r): "I'll admit this is sort of exciting." 11030_ SH-WQ2(x): "We're going to need a new survey of Scraptown after this." 11036_ 22-TG3(E) heat damages Ovr. Barrage Gun. 11041_ LU-1G1's Laser Shovel disintegrates Wall. 11065_ FT-DLJ(g): "We are one!" 11073_ LU-1G1's Laser Shovel disintegrates Wall. 11079_ EXIT=FOUND 11083_ LU-1G1's Laser Shovel disintegrates Wall. [Achievement: Back For More] Map ----- +----------------------------------------------------+ | | | | | | | | | | | | | | | | | | | ?????????????????????????????????????????????????? | | ?????????????????????????????????????????????????? | | ?????????????????????????????????????????????????? | | ?????????????????????????????????????????????????? | | ?????????????????????????????????????????????????? | | ?????????????????????????????????????????????????? | | ?????????????????????????????????????????????????? | | ?????????????????????????????????????????????????? | | ?????????????????????????????????????????????????? | | ?????????????????????????????????????????????????? | | ?????????????????????????????????????????????????? | | ???????????????????????#####?????????????????????? | | ?????????????????????###"""#?????????????????????? | | ###########???####???# #"="#?????????????????????? | | ##""|##"""#??## ##???#;!